bitfinex-derivatives/quotes_SOLF0:USTF0_20250105
["timestamp","ask_amount","ask_price","bid_price","bid_amount"]
[1736081241063,2.3349,214.2,214.12,86.94562762]
[1736081241263,2.3349,214.2,214.13,2.6]
[1736081242071,2.9763,214.29,214.12,86.94562762]
[1736081242376,2.9763,214.29,214.13,2.6]
[1736081242676,2.3353,214.16,214.13,2.6]
[1736081243070,2.3354,214.15,214.13,2.6]
[1736081245771,2.3355,214.14,214.13,2.6]
[1736081245972,2.3355,214.14,214.12,7.82315892]
[1736081246169,2.6,214.25,214.12,7.82315892]
[1736081246673,2.3356,214.13,214.12,7.82315892]
[1736081247871,2.3355,214.14,214.12,7.82315892]
[1736081249480,4.4099,214.19,214.12,7.82315892]
[1736081249978,6.7449,214.19,214.14,2.3355]
[1736081251175,4.4099,214.19,214.12,7.82315892]
[1736081251373,2.3351,214.18,214.12,7.82315892]
[1736081252481,2.3351,214.18,214.13,2.3356]
[1736081257479,4.4099,214.19,214.13,2.3356]
[1736081257684,4.4099,214.19,214.12,10.15885892]
[1736081257981,4.4099,214.19,214.12,12.75885892]
[1736081258182,2.3352,214.17,214.12,12.75885892]
[1736081258381,2.3352,214.17,214.13,2.3356]
[1736081259379,2.3356,214.14,214.12,10.42315892]
[1736081259781,1.5022,214.19,214.12,10.42315892]
[1736081260582,2.3356,214.13,214.12,7.82315892]
[1736081260783,2.3356,214.13,214.1,2.6]
[1736081262185,1.5022,214.19,214.1,4.9359]
[1736081262684,1.5022,214.19,214.1,2.6]
[1736081263487,2.3354,214.16,214.11,2.3358]
[1736081264981,2.3354,214.15,214.11,2.3358]
[1736081271401,2.3353,214.16,214.12,2.3357]
[1736081272100,2.3353,214.16,214.1,2.6]
[1736081272101,1.5022,214.19,214.1,2.6]
[1736081272697,2.3352,214.18,214.13,2.3355]
[1736081273004,1.5022,214.19,214.13,2.3355]
[1736081274096,2.3353,214.17,214.13,2.3355]
[1736081275100,1.5022,214.19,214.09,2.6]
[1736081275301,1.5022,214.19,214.08,2.6]
[1736081275600,2.3357,214.13,214.09,2.336]
[1736081276000,2.3353,214.16,214.1,2.3358]
[1736081276202,1.5022,214.19,214.08,2.6]
[1736081276598,2.3351,214.18,214.08,2.6]
[1736081277803,1.5022,214.19,214.08,2.6]
[1736081278004,2.3352,214.17,214.08,2.6]
[1736081278601,1.5022,214.19,214.08,2.6]
[1736081279306,1.5022,214.19,214.16,2.3352]
[1736081279503,1.5022,214.19,214.16,2.6]
[1736081280508,3.8372,214.19,214.16,2.6]
[1736081280709,1.5022,214.19,214.16,2.6]
[1736081280904,2.3354,214.15,214.11,2.3358]
[1736081281107,2.3354,214.15,214.12,2.6]
[1736081281409,1.5022,214.19,214.12,2.6]
[1736081281611,2.3353,214.16,214.12,2.6]
[1736081283208,2.3353,214.16,214.12,4.9357]
[1736081283711,2.3352,214.18,214.12,4.9357]
[1736081284007,2.3352,214.18,214.13,2.3356]
[1736081284509,1.5022,214.19,214.13,2.3356]
[1736081284704,2.3352,214.17,214.13,2.3356]
[1736081284909,1.5022,214.19,214.14,2.3355]
[1736081285211,3.8372,214.19,214.12,2.6]
[1736081285409,14.77325379,214.24,214.12,2.6]
[1736081285711,2.9063,214.24,214.12,2.6]
[1736081285915,2.3345,214.23,214.12,2.6]
[1736081286214,2.9063,214.24,214.18,2.335]
[1736081286512,2.9063,214.24,214.18,4.935]
[1736081287513,2.3346,214.22,214.18,4.935]
[1736081287911,2.9063,214.24,214.2,2.3348]
[1736081289008,2.9063,214.24,214.18,2.6]
[1736081289209,2.9063,214.24,214.19,2.335]
[1736081290515,2.3345,214.23,214.19,2.335]
[1736081290819,2.3345,214.23,214.18,2.6]
[1736081290820,2.9063,214.24,214.18,2.6]
[1736081291013,2.3348,214.21,214.1,1.4907]
[1736081291211,2.9063,214.24,214.11,2.6]
[1736081291710,2.3349,214.2,214.15,2.3353]
[1736081292016,2.3349,214.2,214.15,4.9353]
[1736081292217,2.3351,214.18,214.13,2.3355]
[1736081292411,2.3351,214.18,214.14,2.6]
[1736081292914,2.3347,214.21,214.15,2.3353]
[1736081293114,2.9063,214.24,214.15,2.3353]
[1736081293908,2.335,214.19,214.15,2.3353]
[1736081298022,2.9063,214.24,214.14,2.6]
[1736081298222,2.9063,214.24,214.14,4.9355]
[1736081299426,2.3351,214.19,214.14,4.9355]
[1736081302722,2.3351,214.18,214.14,4.9355]
[1736081303522,2.9063,214.24,214.14,4.9355]
[1736081303523,2.3353,214.17,214.14,2.6]
[1736081304827,2.3352,214.17,214.14,2.6]
[1736081306426,2.3352,214.17,214.14,4.9355]
[1736081307031,2.3351,214.18,214.14,4.9355]
[1736081307830,2.9063,214.24,214.14,2.6]
[1736081308028,2.335,214.19,214.14,2.6]
[1736081309431,2.335,214.19,214.15,2.3354]
[1736081315129,2.3355,214.14,214.11,4.9357]
[1736081315335,1.3993,214.18,214.11,4.9357]
[1736081316031,2.3354,214.15,214.11,4.9357]
[1736081316932,2.3355,214.14,214.11,4.9357]
[1736081317443,1.3993,214.18,214.09,79.04314968]
[1736081317734,1.4879,214.17,214.09,79.04314968]
[1736081318030,2.3354,214.15,214.09,79.04314968]
[1736081318330,1.4879,214.17,214.09,79.04314968]
[1736081318331,1.4323,214.16,214.09,79.04314968]
[1736081318734,2.3358,214.12,214.09,79.04314968]
[1736081318936,1.4323,214.16,214.06,10.42572575]
[1736081319236,2.3356,214.13,214.06,10.42572575]
[1736081319430,4.0323,214.16,214.06,10.42572575]
[1736081321728,1.4323,214.16,214.06,10.42572575]
[1736081322335,2.3354,214.15,214.1,2.3359]
[1736081322930,2.3355,214.14,214.1,2.3359]
[1736081323135,1.4323,214.16,214.08,2.3361]
[1736081323337,1.4323,214.16,214.06,7.82572575]
[1736081323840,4.0323,214.16,214.06,7.82572575]
[1736081325435,2.3362,214.08,214.06,7.82572575]
[1736081328736,18.0723,214.16,213.9,19.35689541]
[1736081328936,26.35396323,214.15,213.91,2.6]
[1736081329239,32.85925327,214.14,213.92,2.6]
[1736081329535,18.30272404,214.13,213.92,2.6]
[1736081329737,18.30272404,214.12,213.92,2.6]
[1736081330043,4.26272404,214.11,213.94,2.3377]
[1736081330238,2.6,214.1,213.94,2.3377]
[1736081330438,4.0456,214.1,213.94,2.3377]
[1736081330638,1.4979,214.09,213.94,2.3377]
[1736081331138,1.5188,214.08,213.94,2.3377]
[1736081331541,2.3371,214.0,213.94,2.3377]
[1736081331940,2.3371,214.0,213.95,2.3376]
[1736081333737,2.3371,214.0,213.92,2.6]
[1736081333738,2.3371,214.0,213.96,2.3374]
[1736081334344,2.3371,214.0,213.95,2.3376]
[1736081340041,2.6,214.05,213.92,2.6]
[1736081340241,2.3373,213.98,213.93,4.9378]
[1736081343341,2.3374,213.97,213.93,4.9378]
[1736081343848,2.3374,213.97,213.93,2.3378]
[1736081345340,2.3374,213.97,213.92,4.9378]
[1736081345545,2.6,214.05,213.92,2.3378]
[1736081346151,2.3374,213.97,213.92,2.3378]
[1736081347040,2.3374,213.97,213.93,2.3378]
[1736081348550,2.3374,213.97,213.94,2.3377]
[1736081350246,2.3374,213.97,213.93,2.3377]
[1736081351052,2.3374,213.97,213.94,2.3377]
[1736081351454,49.20533287,214.06,213.91,2.6]
[1736081351750,2.6,214.05,213.91,2.6]
[1736081352343,2.6,214.05,213.95,2.3375]
[1736081352949,2.3371,214.0,213.95,2.3375]
[1736081353247,2.6,214.05,213.95,2.3375]
[1736081354853,2.6,214.05,213.92,2.6]
[1736081355458,2.3375,213.96,213.92,4.9378]
[1736081360558,2.3371,214.0,213.92,2.6]
[1736081360757,51.80533287,214.06,213.92,2.6]
[1736081361255,2.3369,214.02,213.97,2.3373]
[1736081361459,51.80533287,214.06,213.97,2.3373]
[1736081362553,2.3369,214.01,213.97,2.3373]
[1736081363151,49.20533287,214.06,213.92,2.6]
[1736081364956,2.3368,214.03,213.98,2.3372]
[1736081367160,2.3368,214.03,213.98,2.27848746]
[1736081368557,1.5188,214.08,213.97,2.6]
[1736081369052,2.3365,214.06,213.97,2.6]
[1736081369455,1.5188,214.08,213.97,2.6]
[1736081370255,2.3367,214.04,213.99,2.3371]
[1736081371561,1.5188,214.08,213.99,2.3371]
[1736081371562,2.3367,214.03,213.99,2.3371]
[1736081378165,2.3365,214.05,214.02,2.3368]
[1736081378354,1.5188,214.08,213.97,2.6]
[1736081378968,2.3361,214.09,214.05,2.3364]
[1736081381467,2.3361,214.08,214.04,2.3366]
[1736081384559,2.3361,214.09,214.05,2.3365]
[1736081386169,3.7815,214.1,214.06,2.3363]
[1736081392170,2.3359,214.1,214.06,2.3363]
[1736081401769,1.4804,214.15,214.03,2.6]
[1736081401770,2.3358,214.12,214.07,2.3362]
[1736081402779,2.3358,214.11,214.07,2.3362]
[1736081403486,2.3356,214.13,214.09,2.336]
[1736081403875,1.4804,214.15,214.08,2.6]
[1736081404077,2.336,214.1,214.06,2.3364]
[1736081404283,2.336,214.1,214.05,2.6]
[1736081404676,2.336,214.1,214.05,4.9365]
[1736081404876,2.336,214.09,214.05,4.9365]
[1736081405077,1.4804,214.15,214.05,2.6]
[1736081405478,2.3363,214.07,214.05,2.6]
[1736081406978,2.3364,214.06,214.03,2.3367]
[1736081409374,2.6,214.14,214.03,2.3367]
[1736081409579,2.3363,214.07,214.03,2.3367]
[1736081413075,2.3363,214.07,214.02,2.6]
[1736081413280,2.3363,214.07,214.04,2.3366]
[1736081413475,2.6,214.14,214.04,2.3366]
[1736081413683,2.3362,214.08,214.04,2.3366]
[1736081414380,1.4804,214.15,214.02,2.6]
[1736081415591,2.3358,214.12,214.08,2.3361]
[1736081415795,2.3358,214.12,214.08,4.9361]
[1736081422384,1.4804,214.15,214.0,74.23798507]
[1736081422586,1.4804,214.15,214.01,2.6]
[1736081423579,2.336,214.1,214.06,2.3363]
[1736081423783,1.4804,214.15,214.07,2.6]
[1736081424789,1.4804,214.15,214.0,74.23798507]
[1736081424989,1.4804,214.15,214.01,2.6]
[1736081425393,1.4804,214.15,214.05,2.3365]
[1736081425584,1.4804,214.15,214.06,2.6]
[1736081427487,2.336,214.1,214.06,4.9364]
[1736081440498,2.336,214.1,213.98,1.3901]
[1736081440499,1.4804,214.15,213.98,1.3901]
[1736081440701,1.4804,214.15,213.99,2.6]
[1736081441001,1.4804,214.15,213.99,76.84943285]
[1736081441498,19.59150073,214.15,213.99,76.84943285]
[1736081441701,55.14527118,214.14,213.99,76.84943285]
[1736081442003,54.240227,214.14,213.99,76.84943285]
[1736081442501,9.73535688,214.13,214.0,2.6]
[1736081442697,18.11147292,214.13,214.0,2.6]
[1736081442903,3.50548478,214.12,214.0,4.937]
[1736081443904,2.3366,214.05,214.0,4.937]
[1736081444904,2.3366,214.04,214.0,4.937]
[1736081447208,2.3366,214.04,214.0,2.337]
[1736081447507,2.3366,214.04,214.0,4.937]
[1736081448007,2.3367,214.03,214.0,4.937]
[1736081448201,2.3367,214.03,214.0,2.6]
[1736081450806,9.72721339,214.13,213.99,74.24943285]
[1736081451310,18.08974856,214.13,213.99,74.24943285]
[1736081451512,3.50548478,214.12,213.99,74.24943285]
[1736081452011,2.3369,214.02,213.99,74.24943285]
[1736081456017,2.3369,214.02,213.98,4.9372]
[1736081470138,4.2958,214.08,213.98,2.6]
[1736081470340,1.4432,214.08,213.99,2.6]
[1736081470542,129.04596942,214.14,213.99,2.6]
[1736081470543,131.98956942,214.14,213.99,2.6]
[1736081470745,133.43926942,214.14,213.99,2.6]
[1736081470932,2.3361,214.09,213.99,4.0593]
[1736081471339,2.3361,214.09,213.99,1.4593]
[1736081471542,2.3361,214.09,214.04,2.3365]
[1736081471740,2.3361,214.09,214.05,2.6]
[1736081472834,2.3359,214.11,214.05,4.9364]
[1736081473341,4.3933,214.14,214.05,2.6]
[1736081473543,2.3357,214.12,214.07,2.3363]
[1736081473946,2.3357,214.12,214.08,2.3361]
[1736081474145,1.4497,214.14,214.08,2.3361]
[1736081474340,3.7853,214.14,214.08,2.3361]
[1736081475241,3.7853,214.14,214.09,2.336]
[1736081475647,51.81556579,214.15,214.05,2.6]
[1736081475841,54.15096579,214.15,214.05,2.6]
[1736081476447,54.15096579,214.15,214.1,2.3359]
[1736081476648,54.15096579,214.15,214.11,2.6]
[1736081480450,51.81556579,214.15,214.11,2.6]
[1736081480652,51.81556579,214.15,214.09,2.6]
[1736081481554,2.3358,214.12,214.09,2.6]
[1736081485757,2.3359,214.11,214.09,2.6]
[1736081485947,1.4256,214.14,214.09,2.6]
[1736081487554,2.3359,214.1,214.09,2.6]
[1736081488357,2.3359,214.1,214.05,2.3365]
[1736081488555,2.3359,214.1,214.06,2.6]
[1736081489159,2.3359,214.1,214.06,4.9364]
[1736081489961,2.3359,214.1,214.06,2.3364]
[1736081490261,2.3359,214.1,214.06,4.9364]
[1736081493058,2.3359,214.1,214.06,2.6]
[1736081493364,2.3359,214.1,214.07,2.3363]
[1736081495863,1.4256,214.14,214.07,2.3363]
[1736081496061,2.3359,214.11,214.07,2.3363]
[1736081496959,1.4256,214.14,214.06,2.6]
[1736081498766,1.4256,214.14,214.11,2.3358]
[1736081499065,1.4256,214.14,214.11,4.9358]
[1736081501363,2.3352,214.17,214.13,2.3356]
[1736081501559,2.8953,214.19,214.11,2.6]
[1736081502872,2.3355,214.14,214.11,2.6]
[1736081504372,2.8953,214.19,214.05,7.82634334]
[1736081504567,2.8953,214.19,214.07,2.3362]
[1736081505872,2.8953,214.19,214.08,2.6]
[1736081506373,2.3358,214.12,214.08,2.6]
[1736081506567,2.8953,214.19,214.08,2.6]
[1736081508679,2.3358,214.12,214.08,2.6]
[1736081510869,2.3358,214.12,214.08,4.9361]
[1736081519886,6.40005868,214.19,214.08,4.9361]
[1736081520086,2.3359,214.11,214.08,4.9361]
[1736081521882,2.8953,214.19,214.08,2.6]
[1736081522483,2.3352,214.17,214.12,2.3357]
[1736081523082,2.3353,214.16,214.12,2.3357]
[1736081523885,2.3355,214.14,214.09,2.336]
[1736081524188,2.8953,214.19,214.11,2.6]
[1736081525480,2.6,214.18,214.08,2.6]
[1736081526389,6.1041999,214.18,214.08,2.6]
[1736081526683,2.6,214.18,214.08,2.6]
[1736081527090,6.1041999,214.18,214.08,2.6]
[1736081527286,2.3354,214.15,214.08,2.6]
[1736081527479,6.1041999,214.18,214.08,2.6]
[1736081527683,2.6,214.18,214.08,2.6]
[1736081529183,2.3354,214.15,214.08,2.6]
[1736081529383,2.6,214.18,214.08,2.6]
[1736081529590,2.6,214.18,214.09,2.336]
[1736081530290,2.6,214.18,214.08,2.6]
[1736081530591,2.6,214.18,214.1,2.3359]
[1736081530592,2.3355,214.15,214.1,2.3359]
[1736081532684,2.3355,214.14,214.1,2.3359]
[1736081534481,2.3354,214.16,214.11,2.3357]
[1736081537387,2.3352,214.18,214.14,2.3355]
[1736081537592,1.5171,214.23,214.14,4.9355]
[1736081537792,5.02124726,214.23,214.14,4.9355]
[1736081537993,1.5171,214.23,214.14,4.9355]
[1736081538785,2.3349,214.2,214.15,2.3354]
[1736081539197,2.3349,214.2,214.14,2.6]
[1736081539394,2.3349,214.2,214.16,2.3353]
[1736081539593,1.5171,214.23,214.14,2.6]
[1736081539791,1.5171,214.23,214.17,2.3351]
[1736081540195,2.3346,214.22,214.17,2.3351]
[1736081540493,129.04596942,214.28,214.18,2.335]
[1736081540695,1.5103,214.28,214.19,2.6]
[1736081541495,2.3345,214.23,214.19,2.6]
[1736081542998,1.5103,214.28,214.19,2.6]
[1736081543191,2.3347,214.22,214.19,2.6]
[1736081543395,1.5103,214.28,214.19,2.6]
[1736081543597,2.3343,214.25,214.17,2.6]
[1736081543796,1.5103,214.28,214.17,2.6]
[1736081544398,5.01367305,214.28,214.17,2.6]
[1736081544698,1.5103,214.28,214.17,2.6]
[1736081545102,2.3343,214.25,214.17,2.6]
[1736081545295,1.5103,214.28,214.17,2.6]
[1736081546402,2.3345,214.24,214.18,2.335]
[1736081547205,2.3343,214.26,214.2,2.3348]
[1736081547405,1.5103,214.28,214.2,2.3348]
[1736081548002,2.3344,214.25,214.2,2.3348]
[1736081549002,2.3344,214.25,214.17,2.6]
[1736081549906,2.3344,214.25,214.2,2.3349]
[1736081550106,2.3345,214.24,214.17,2.6]
[1736081550608,2.3345,214.24,214.19,2.335]
[1736081551511,1.5103,214.28,214.19,2.335]
[1736081551703,2.3346,214.23,214.19,2.335]
[1736081554104,2.3346,214.23,214.18,2.3351]
[1736081554607,2.3346,214.22,214.18,2.3351]
[1736081555207,2.3348,214.21,214.17,2.6]
[1736081555712,2.3348,214.21,214.17,4.9352]
[1736081558509,2.3348,214.21,214.18,2.3351]
[1736081558703,2.3348,214.21,214.19,2.6]
[1736081560410,2.3346,214.23,214.19,4.9349]
[1736081560607,1.5103,214.28,214.19,4.9349]
[1736081560807,1.5103,214.28,214.19,2.6]
[1736081561002,2.3343,214.26,214.19,2.6]
[1736081561210,1.5103,214.28,214.19,2.6]
[1736081562704,2.3346,214.23,214.19,2.6]
[1736081563111,1.5103,214.28,214.07,0.0489]
[1736081563306,2.6,214.27,214.07,0.0489]
[1736081563514,2.6,214.27,214.08,2.6]
[1736081564212,2.3352,214.18,214.08,2.6]
[1736081564908,2.3347,214.22,214.06,78.21650631]
[1736081565110,4.4062,214.21,214.09,2.6]
[1736081565503,2.3351,214.18,214.12,2.3357]
[1736081565702,4.4062,214.21,214.12,2.3357]
[1736081566219,2.3353,214.17,214.12,2.3357]
[1736081568519,4.4062,214.21,214.06,78.21650631]
[1736081568714,2.3356,214.14,214.07,2.6]
[1736081570518,2.3356,214.14,214.11,2.3358]
[1736081572516,2.3356,214.14,214.11,4.9358]
[1736081573516,4.4062,214.21,214.11,4.9358]
[1736081573714,4.4062,214.21,214.11,2.6]
[1736081573914,4.4062,214.21,214.12,2.3357]
[1736081574415,4.4062,214.21,214.11,4.9357]
[1736081574416,2.3351,214.18,214.11,4.9357]
[1736081574615,4.4062,214.21,214.11,2.6]
[1736081575517,2.3354,214.16,214.12,2.3357]
[1736081576718,2.3354,214.16,214.13,2.3356]
[1736081579816,2.3357,214.12,214.08,2.3361]
[1736081581118,2.3359,214.11,214.08,2.3361]
[1736081586925,2.6,214.18,214.06,76.79020631]
[1736081587227,2.3362,214.08,214.06,76.79020631]
[1736081588227,2.6,214.13,213.91,11.31943441]
[1736081588434,2.3368,214.02,213.97,2.3373]
[1736081588630,2.3368,214.02,213.95,2.6]
[1736081589035,2.3367,214.04,213.99,2.3371]
[1736081589233,1.4355,214.07,213.99,2.3371]
[1736081589840,2.3365,214.05,213.99,2.3371]
[1736081590139,1.4355,214.07,213.99,2.3371]
[1736081591537,2.3367,214.04,213.99,2.3371]
[1736081597040,2.3367,214.03,213.99,2.3371]
[1736081601040,4.2545,214.07,213.91,11.26993441]
[1736081601246,2.6,214.06,213.92,2.6]
[1736081601643,2.337,214.01,213.96,2.3374]
[1736081602248,2.6,214.06,213.96,2.3374]
[1736081602546,2.6,214.06,213.91,11.26993441]
[1736081602745,2.6,214.06,213.92,2.6]
[1736081603247,2.6,214.06,213.94,2.3377]
[1736081603745,2.3372,213.99,213.94,2.3377]
[1736081608146,2.6,214.06,213.94,2.3377]
[1736081608346,2.3373,213.98,213.94,2.3377]
[1736081609444,2.6,214.06,213.94,2.3377]
[1736081609643,2.3372,213.99,213.94,2.3377]
[1736081611642,2.337,214.01,213.96,2.3374]
[1736081611842,2.6,214.05,213.92,2.6]
[1736081612446,2.3369,214.02,213.97,2.3373]
[1736081614348,2.6,214.05,213.97,2.3373]
[1736081614545,2.3369,214.01,213.97,2.3373]
[1736081627752,2.3366,214.04,214.0,2.337]
[1736081627952,4.2545,214.07,213.95,7.83022848]
[1736081628150,4.2545,214.07,213.97,2.6]
[1736081628758,2.3365,214.06,214.0,2.337]
[1736081628958,2.3365,214.06,213.97,2.6]
[1736081629361,2.3365,214.06,213.99,2.3371]
[1736081629562,2.3365,214.06,213.97,2.6]
[1736081630456,2.3365,214.06,214.01,2.3368]
[1736081630963,2.3365,214.06,214.02,2.3368]
[1736081639062,2.3361,214.09,214.04,2.3365]
[1736081639264,7.90687401,214.14,214.0,79.17251608]
[1736081639462,2.6,214.13,214.0,79.17251608]
[1736081639766,57.66776263,214.13,214.0,79.17251608]
[1736081640062,2.3363,214.07,214.0,79.17251608]
[1736081641368,2.3363,214.07,214.02,2.3367]
[1736081642469,2.3364,214.06,214.02,2.3367]
[1736081642663,57.66776263,214.13,214.0,81.50941608]
[1736081643264,2.3366,214.05,214.0,81.50941608]
[1736081643971,2.3366,214.04,214.0,81.50941608]
[1736081645266,2.3366,214.04,214.0,79.17251608]
[1736081645568,2.3366,214.04,214.01,2.3369]
[1736081648271,2.3364,214.06,214.0,79.17251608]
[1736081648771,2.3364,214.06,214.02,2.3367]
[1736081649373,2.3363,214.07,214.03,2.3366]
[1736081650169,2.3363,214.07,214.0,79.17251608]
[1736081650371,2.3363,214.07,214.04,2.3366]
[1736081650771,2.6,214.12,214.04,2.3366]
[1736081652574,2.3359,214.1,214.06,2.3364]
[1736081652872,2.6,214.12,214.0,79.17251608]
[1736081654674,2.6,214.12,214.06,2.3363]
[1736081654974,2.6,214.12,214.0,79.17251608]
[1736081655174,2.336,214.1,214.05,2.3365]
[1736081656776,2.3361,214.09,214.05,2.3365]
[1736081659777,2.3362,214.08,214.04,2.3366]
[1736081662177,55.06776263,214.13,214.0,79.17251608]
[1736081663177,3.50598786,214.12,213.97,2.6]
[1736081663574,24.77761206,214.12,213.97,2.6]
[1736081663775,2.3369,214.02,213.97,4.9374]
[1736081666282,2.337,214.01,213.97,4.9374]
[1736081666978,2.337,214.01,213.97,2.3374]
[1736081667173,2.3371,214.0,213.96,2.6]
[1736081667980,2.3371,214.0,213.96,4.9374]
[1736081670578,2.3371,214.0,213.96,2.3374]
[1736081670780,12.3274427,214.09,213.96,2.3374]
[1736081670976,2.3372,213.99,213.96,2.3374]
[1736081677592,2.337,214.01,213.97,2.3373]
[1736081677787,2.337,214.01,213.95,7.83022848]
[1736081678086,2.3368,214.03,213.99,2.3371]
[1736081678685,2.3368,214.02,213.99,2.3371]
[1736081681895,2.6,214.08,213.99,2.3371]
[1736081682115,2.3367,214.03,213.99,2.3371]
[1736081690304,2.6,214.08,213.95,7.83022848]
[1736081690505,2.3366,214.04,214.0,2.3369]
[1736081694909,2.6,214.1,213.98,2.3372]
[1736081696607,2.3369,214.02,213.98,2.3372]
[1736081707813,2.337,214.01,213.98,2.3372]
[1736081714320,2.8987,214.06,213.97,2.6]
[1736081714620,2.8987,214.06,213.99,2.3371]
[1736081715717,2.3368,214.02,213.98,2.3372]
[1736081716217,2.3367,214.03,213.96,2.3375]
[1736081716422,1.4489,214.05,213.96,2.3375]
[1736081716620,4.0489,214.05,213.96,2.3375]
[1736081717523,2.337,214.01,213.96,2.3375]
[1736081719826,2.3371,214.0,213.96,2.3375]
[1736081721126,4.0489,214.05,213.95,10.43022848]
[1736081721328,4.0489,214.05,213.95,7.83022848]
[1736081722827,2.3374,213.97,213.95,7.83022848]
[1736081724027,2.3375,213.96,213.95,7.83022848]
[1736081724322,2.6,214.0,213.87,2.6]
[1736081724528,25.20410098,214.05,213.87,2.6]
[1736081724529,5.6127,213.99,213.87,2.6]
[1736081724731,4.0906,213.98,213.83,50.0554]
[1736081724919,4.0906,213.98,213.84,2.6]
[1736081725123,4.0906,213.98,213.87,2.3384]
[1736081725729,2.3379,213.93,213.87,2.3384]
[1736081726033,4.0906,213.98,213.87,2.3384]
[1736081726334,2.338,213.91,213.87,2.3384]
[1736081727431,2.3382,213.9,213.86,2.3385]
[1736081732233,2.338,213.91,213.87,2.3385]
[1736081732438,4.0906,213.98,213.85,2.6]
[1736081732937,2.3379,213.92,213.88,2.3383]
[1736081739744,4.0906,213.98,213.85,2.6]
[1736081739944,1.4906,213.98,213.85,2.6]
[1736081741544,2.3375,213.97,213.92,2.3378]
[1736081742045,2.3375,213.96,213.92,2.3378]
[1736081742343,1.4906,213.98,213.92,2.3378]
[1736081742645,1.4906,213.98,213.91,2.338]
[1736081743145,2.3375,213.96,213.91,2.338]
[1736081752651,1.4906,213.98,213.9,4.9381]
[1736081752852,1.4906,213.98,213.9,2.3381]
[1736081753159,2.3378,213.94,213.9,2.3381]
[1736081754665,2.3378,213.93,213.89,2.3382]
[1736081755165,1.4906,213.98,213.88,2.6]
[1736081755363,1.4906,213.98,213.86,2.6]
[1736081755959,2.338,213.92,213.87,2.3384]
[1736081756657,1.4906,213.98,213.87,2.3384]
[1736081756854,2.338,213.91,213.87,2.3384]
[1736081762774,1.4906,213.98,213.89,2.3381]
[1736081762775,2.3377,213.95,213.89,2.3381]
[1736081763075,2.3377,213.95,213.86,2.6]
[1736081763076,1.4906,213.98,213.86,2.6]
[1736081763577,2.3378,213.94,213.9,2.338]
[1736081768875,2.3376,213.96,213.91,2.338]
[1736081769070,2.3376,213.96,213.86,2.6]
[1736081769578,1.4906,213.98,213.86,2.6]
[1736081770480,2.3379,213.92,213.88,2.3383]
[1736081775379,2.3379,213.92,213.89,2.3382]
[1736081780086,2.3382,213.9,213.87,2.3385]
[1736081783086,2.3383,213.89,213.86,4.9385]
[1736081785184,56.59560818,213.98,213.86,2.6]
[1736081786387,59.19560818,213.98,213.86,2.6]
[1736081787283,59.19560818,213.98,213.88,2.3383]
[1736081788191,2.3379,213.93,213.88,2.3383]
[1736081789191,59.19560818,213.98,213.88,2.3383]
[1736081789392,2.3379,213.92,213.88,2.3383]
[1736081789890,59.19560818,213.98,213.86,2.6]
[1736081790086,59.19560818,213.98,213.86,4.9385]
[1736081790286,59.19560818,213.98,213.86,2.6]